Cogmind - Beta 17 @@@ ROGUE MODE // 2026.08.09 @ 23:02:45 Player: Marc Result: Destroyed by Y-45 Defender with Heavy Assault Rifle Performance ------------- Evolutions (2) 1000 Regions Visited (5) 1000 Robots Destroyed (14) 70 Value Destroyed (609) 609 Prototype IDs (2) 40 Alien Tech Used (0) 0 Bonus (200) 200 TOTAL SCORE: 2919 Bonus ------- Entered Garrisons 200 Cogmind --------- Core Integrity 0/550 Matter 251/300 Energy 100/100 System Corruption 4% Temperature Cool (6) Movement Core (50) Location -8/Garrison Parts ------- > --- POWER (2) -------- (None) > --- PROPULSION (2) --- (None) > --- UTILITY (4) ------ (None) > --- WEAPON (3) ------- (None) > --- INVENTORY (5) ---- Relay Coupler [NC] (27) Relay Coupler [NC] (24) Peak State ------------ > --- POWER ------------ Light Ion Engine Light Ion Engine > --- PROPULSION ------- Flight Unit Improved Flight Unit > --- UTILITY ---------- Weight Redist. System Visual Processing Unit Advanced Targeting Computer > --- WEAPON ----------- Pulse Rifle Datajack > --- INVENTORY -------- Flight Unit Rocket Launcher [Rating: 17] Favorites ----------- Power Light Ion Engine Engine Light Ion Engine Propulsion Aluminum Leg Leg Aluminum Leg Flight Unit Flight Unit Utility Visual Processing Unit Device Terrain Scanner Processor Visual Processing Unit Weapon Datajack Energy Gun Pulse Rifle Ballistic Gun Assault Rifle Launcher Grenade Launcher Special Melee Weapon Datajack Build | -11 -10 -9 -9 -8 -8 ------- Run | Yrd Mat Mat Min Mat Gar Slots Evolved 4 | . . 2 . 2 . Power 1 | . . . . 1 . Propulsion . | . . . . . . Utility 2 | . . 2 . . . Weapon 1 | . . . . 1 . Parts Attached 23 | 5 3 5 4 6 . Power 3 | 1 . 1 . 1 . Engine 3 | 1 . 1 . 1 . Core . | . . . . . . Reactor . | . . . . . . Propulsion 5 | 2 . 3 . . . Treads . | . . . . . . Leg 2 | 2 . . . . . Wheel . | . . . . . . Hover . | . . . . . . Flight 3 | . . 3 . . . Utility 5 | . 1 . 2 2 . Device 3 | . 1 . 1 1 . Storage . | . . . . . . Processor 2 | . . . 1 1 . Hackware . | . . . . . . Protection . | . . . . . . Artifact . | . . . . . . Weapon 10 | 2 2 1 2 3 . Energy Gun 3 | . . 1 1 1 . Energy Cannon . | . . . . . . Ballistic Gun 2 | 2 . . . . . Ballistic Cannon . | . . . . . . Launcher 2 | . 1 . . 1 . Special Weapon . | . . . . . . Impact Weapon . | . . . . . . Slashing Weapon . | . . . . . . Piercing Weapon . | . . . . . . Special Melee Weapon 3 | . 1 . 1 1 . Unidentified Prototypes 2 | . . 2 . . . Parts Lost 18 | . . 6 1 . 11 Power 3 | . . 1 . . 2 Propulsion 5 | . . 2 . . 3 Utility 5 | . . 1 1 . 3 Weapon 5 | . . 2 . . 3 Highest Loss Streak 8 | . . 5 1 . 8 To Critical Strikes . | . . . . . . Average Backups 2 | 1 1 2 2 3 2 Power . | . . . 1 . . Propulsion . | . . . 1 1 . Utility . | . . . . . 1 Weapon 1 | . 1 2 . 1 . Tool/Special . | . . . . . . Unused Backups 2 | . . . . . 2 Power . | . . . . . . Propulsion . | . . . . . . Utility 2 | . . . . . 2 Weapon . | . . . . . . Tool/Special . | . . . . . . Average Slot Usage (%) 64 | . 78 54 67 65 50 Engine 11 | . 14 6 11 15 10 Leg 11 | . 28 14 . . . Flight 8 | . . 4 22 18 9 Device 6 | . 8 8 5 2 7 Processor 5 | . . . 6 11 14 Energy Gun 4 | . . 4 6 9 5 Ballistic Gun 5 | . 11 5 8 . . Launcher 4 | . 10 2 . . . Special Melee Weapon 6 | . 6 7 6 9 1 Peak Build Rating 17 | 5 6 8 12 17 17 Average Rating 8 | 2 5 5 10 12 11 On Entrance 7 | . 5 6 7 10 17 Avg Prop Armor Cover (%) . | . . . . . . Naked Turns 2 | . . . . . 2 Heaviest Build 13 | 7 9 8 9 10 13 Greatest Support 20 | 20 20 20 10 16 16 Greatest Overweight (x) 1 | . . . . . 1 Average Overweight (x) . | . . . . . . Largest Inventory Capacity 5 | 5 5 5 5 5 5 Average Capacity 5 | 5 5 5 5 5 5 Most Carried 5 | 5 3 5 5 5 3 Average Carried 2 | 1 1 2 2 3 2 Final Capacity 5 | 5 5 5 5 5 5 Final Carried 4 | . 2 4 3 2 2 Class Distribution -------------------- 87% | Mutant 12% | Scavenger-Mutant Dominant Class ---------------- Mutant | -10/Materials Mutant | -9/Materials Mutant | -9/Mines Scavenger-Mutant | -8/Materials Mutant | -8/Garrison Resources | -11 -10 -9 -9 -8 -8 ----------- Run | Yrd Mat Mat Min Mat Gar Matter Collected 456 | 120 12 38 226 25 35 Remotely . | . . . . . . Salvage Created 368 | . 99 128 43 25 73 Parts 32 | . 8 12 3 4 5 Haulers Intercepted . | . . . . . . Recyclers Shooed . | . . . . . . Parts Field Recycled . | . . . . . . Retrieved Matter . | . . . . . . Parts Self-Destructed . | . . . . . . Prevented . | . . . . . . Parts Restored . | . . . . . . Kills | -11 -10 -9 -9 -8 -8 ------- Run | Yrd Mat Mat Min Mat Gar Combat Hostiles Destroyed 12 | . 3 5 1 . 3 Guns 7 | . . 5 1 . 1 AOE 5 | . 3 . . . 2 Classes Destroyed 6 | . 1 2 . 2 1 Operator 1 | . . . . 1 . Watcher 1 | . . . . 1 . Swarmer 4 | . . 4 . . . Grunt 5 | . 3 . 1 . 1 Sentry 2 | . . 1 . . 1 Hunter 1 | . . . . . 1 Best Kill Streak 4 | . 2 4 1 2 3 Combat Bots Only 4 | . 2 4 1 . 3 Max Kills in Single Turn 2 | . 2 1 1 1 1 Gunslinging . | . . . . . . Exploded 2 | . 2 . . . 1 Melee . | . . . . . . Uniques/NPCs Destroyed . | . . . . . . Combat | -11 -10 -9 -9 -8 -8 -------- Run | Yrd Mat Mat Min Mat Gar Hostile Shots Fired 164 | . 11 49 15 2 87 Missed 43 | . 3 13 2 1 24 Hits 121 | . 8 36 13 1 63 Projectile 121 | . 8 36 13 1 63 Critical Strikes 7 | . . 3 . . 4 Damage Taken 1708 | . 129 461 180 18 920 Core 766 | . 22 113 77 18 536 Absorbed by Shields 132 | . . . 28 . 104 Core Remaining (%) 81 | 100 91 . 52 . . Volleys Fired 50 | . 3 18 7 12 10 Largest 2 | . 1 1 1 1 2 Hottest 96 | . 30 45 45 63 96 Shots Fired 55 | . 3 18 7 12 15 Gun 45 | . . 18 7 10 10 Cannon . | . . . . . . Launcher 10 | . 3 . . 2 5 Special . | . . . . . . Kinetic 6 | . . 6 . . . Thermal 20 | . . . . 10 10 Explosive 10 | . 3 . . 2 5 Electromagnetic 19 | . . 12 7 . . Robot Hit Streak 13 | . 2 13 6 2 6 Robot Miss Streak 5 | . . 4 5 3 1 Penetration Max . | . . . . . . Secondary Targets . | . . . . . . Shots Hit Robots 39 | . 5 17 6 4 7 Core Hits 28 | . 3 6 4 4 11 Critical Kills . | . . . . . . Critical Parts Destroyed . | . . . . . . Critical Strikes 1 | . . . . . 1 Burn 1 | . . . . . 1 Melee Attacks 9 | . 6 1 1 . 1 Impact . | . . . . . . Slashing . | . . . . . . Piercing . | . . . . . . Sneak Attacks 3 | . 1 1 1 . . Combat Hostiles . | . . . . . . Follow-up Attacks . | . . . . . . Damage Inflicted 1267 | . 163 231 138 120 615 Guns 476 | . . 231 75 68 102 Cannons . | . . . . . . Explosions 791 | . 163 . 63 52 513 Melee . | . . . . . . Ramming . | . . . . . . Kinetic 78 | . . 78 . . . Thermal 233 | . . . 63 68 102 Explosive 728 | . 163 . . 52 513 Electromagnetic 228 | . . 153 75 . . Impact . | . . . . . . Slashing . | . . . . . . Piercing . | . . . . . . Highest Corruption 4 | . . . . . 4 Average Corruption 4 | . . . . . 4 Corruption Purged . | . . . . . . Corruption Blocked . | . . . . . . Overload Shots . | . . . . . . Overflow Damage 47 | . . . . . 47 Projectiles . | . . . . . . Explosions 47 | . . . . . 47 Melee . | . . . . . . Knockbacks . | . . . . . . Impact . | . . . . . . Kinetic . | . . . . . . Secondary . | . . . . . . Self-Inflicted Damage 116 | . 40 . 44 . 32 Shots 4 | . 1 . 1 . 2 Rammed . | . . . . . . Targets Rammed . | . . . . . . Kicked . | . . . . . . Crushed . | . . . . . . Highest Temperature 136 | . 8 21 55 116 136 Average Temperature 49 | . 5 9 20 53 74 Received Heat Transfer 525 | . 48 153 74 . 250 Siege Activations . | . . . . . . Martial Activations . | . . . . . . Shielding Activations . | . . . . . . Robots Disrupted . | . . . . . . Combat Hostiles . | . . . . . . Robots Corrupted . | . . . . . . Combat Hostiles . | . . . . . . Parts Fried 2 | . . 2 . . . Impact Corruptions . | . . . . . . Robots Melted . | . . . . . . Combat Hostiles . | . . . . . . Parts Melted . | . . . . . . Heat Transferred 494 | . . . 50 148 296 Parts Sabotaged . | . . . . . . Parts Stolen . | . . . . . . Parts Stripped . | . . . . . . Power Chain Reactions 1 | . . . 1 . . Alert | -11 -10 -9 -9 -8 -8 ------- Run | Yrd Mat Mat Min Mat Gar Maximum Alert Level . | . . . . . . Low Security (%) 100 | 100 100 100 100 100 100 Level 1 . | . . . . . . Level 2 . | . . . . . . Level 3 . | . . . . . . Level 4 . | . . . . . . Level 5 . | . . . . . . High Security . | . . . . . . Max Security . | . . . . . . Peak Influence 118 | . 81 80 72 65 118 Initial 33 | . . 33 8 27 20 Average 24 | . 3 34 12 43 52 Influence Increases 572 | . 101 122 112 64 173 Destroy 0b10 Robot/C 240 | . 60 100 20 . 60 Destroy 0b10 Robot/NC 10 | . . . . 10 . Destroy Leader 42 | . 20 20 . 2 . Successful Hack 6 | . . 2 . 4 . Anti-Garrison Action 50 | . . . . . 50 Destroy Structure 59 | . 21 . 2 18 18 Partial Spotted 15 | . . . . 15 . Lose Combat Pursuer 150 | . . . 90 15 45 Influence Decreases 489 | . 20 181 62 105 121 Entered New Map 118 | . . 48 14 45 11 Time Decay 198 | . 20 80 38 60 . Lost Part 173 | . . 53 10 . 110 Squads Dispatched 2 | . 2 . . . . Investigation 1 | . 1 . . . . Extermination . | . . . . . . Reinforcement 1 | . 1 . . . . Assault . | . . . . . . Garrison . | . . . . . . Intercept . | . . . . . . Searches Triggered . | . . . . . . Construction Impeded . | . . . . . . Haulers Reinforced . | . . . . . . Active Scanning Responses . | . . . . . . Cargo Convoy Interrupts . | . . . . . . Stealth | -11 -10 -9 -9 -8 -8 --------- Run | Yrd Mat Mat Min Mat Gar Distress Signals . | . . . . . . Communications Jammed . | . . . . . . Distress Signals . | . . . . . . Times Spotted 35 | . 5 8 11 3 8 Peak Tracking Total 7 | . 3 5 6 2 7 Tactical Retreats 6 | . . . 3 1 2 Traps | -11 -10 -9 -9 -8 -8 ------- Run | Yrd Mat Mat Min Mat Gar Traps Triggered 5 | . 1 . . . 4 Indirectly . | . . . . . . Trap Hack Attempts . | . . . . . . Triggered . | . . . . . . Disarmed . | . . . . . . Reprogrammed . | . . . . . . Reused . | . . . . . . Traps Extracted . | . . . . . . Installed . | . . . . . . Triggered . | . . . . . . Machines | -11 -10 -9 -9 -8 -8 ---------- Run | Yrd Mat Mat Min Mat Gar Machines Disabled 1 | . . . . . 1 Max in Single Turn 1 | . . . . . 1 Garrison Relay 1 | . . . . . 1 Machines Repaired . | . . . . . . Machines Dismantled . | . . . . . . Machines Sabotaged . | . . . . . . Overloaded Fab Kills . | . . . . . . Hacking | -11 -10 -9 -9 -8 -8 --------- Run | Yrd Mat Mat Min Mat Gar Machines Accessed 4 | . 1 2 . 1 . Terminals 2 | . 1 1 . . . Fabricators . | . . . . . . Repair Stations . | . . . . . . Recycling Units . | . . . . . . Scanalyzers 1 | . . 1 . . . Garrison Access 1 | . . . . 1 . Total Hacks 12 | . 3 6 . 3 . Successful 5 | . 1 2 . 2 . Failed 7 | . 2 4 . 1 . Catastrophic 1 | . 1 . . . . Database Lockouts . | . . . . . . Manual . | . . . . . . Terminals 6 | . 3 3 . . . Fabricators . | . . . . . . Repair Stations . | . . . . . . Recycling Units . | . . . . . . Scanalyzers 3 | . . 3 . . . Garrison Access 3 | . . . . 3 . Terminal Hacks 1 | . 1 . . . . Record 1 | . 1 . . . . Fabricator Hacks . | . . . . . . Repair Station Hacks . | . . . . . . Recycling Unit Hacks . | . . . . . . Scanalyzer 2 | . . 2 . . . Retrieve Study 2 | . . 2 . . . Garrison Access Hacks 2 | . . . . 2 . Unlock Access 1 | . . . . 1 . Coupler Status 1 | . . . . 1 . Unauthorized Hacks . | . . . . . . Terminals . | . . . . . . Fabricators . | . . . . . . Repair Stations . | . . . . . . Recycling Units . | . . . . . . Scanalyzers . | . . . . . . Garrison Access . | . . . . . . Data Cores Recovered 1 | . . . . 1 . Used . | . . . . . . Hacking Detections 4 | . 1 2 . 1 . Full Trace Events . | . . . . . . Feedback Events . | . . . . . . Feedback Blocked . | . . . . . . Robot Schematics Acquired . | . . . . . . Robots Built . | . . . . . . Authchips . | . . . . . . Time . | . . . . . . Total Robot Build Rating . | . . . . . . Part Schematics Acquired . | . . . . . . Parts Built . | . . . . . . Authchips . | . . . . . . Time . | . . . . . . Total Part Build Rating . | . . . . . . Part Studies Acquired 2 | . . 2 . . . Parts Repaired . | . . . . . . Time . | . . . . . . Parts Recycled . | . . . . . . Recycled Matter . | . . . . . . Retrieved Matter . | . . . . . . Retrieved Components . | . . . . . . Parts Scanalyzed . | . . . . . . Part Schematics Acquired . | . . . . . . Parts Damaged . | . . . . . . Bothacking | -11 -10 -9 -9 -8 -8 ------------ Run | Yrd Mat Mat Min Mat Gar Used RIF Installer . | . . . . . . Robots Hacked 3 | . 2 1 . . . Non-combat 2 | . 1 1 . . . Combat 1 | . 1 . . . . Robot Hacks Applied 3 | . 2 1 . . . parse_system 1 | . 1 . . . . no_distress 1 | . . 1 . . . check_alert 1 | . 1 . . . . Relay Couplers Released 5 | . . . . . 5 Machine Destruction 5 | . . . . . 5 Fabnet Peak Effective % . | . . . . . . Robots Rewired . | . . . . . . Allies Hacked . | . . . . . . Hacks Repelled . | . . . . . . Allies | -11 -10 -9 -9 -8 -8 -------- Run | Yrd Mat Mat Min Mat Gar Total Allies . | . . . . . . Largest Group . | . . . . . . Highest-Rated Group . | . . . . . . Highest-Rated Ally . | . . . . . . Total Orders . | . . . . . . Ally Attacks . | . . . . . . Total Damage . | . . . . . . Kills . | . . . . . . Allies Corrupted . | . . . . . . Allies Melted . | . . . . . . Intel | -11 -10 -9 -9 -8 -8 ------- Run | Yrd Mat Mat Min Mat Gar Active Infowar (turns) 603 | . 163 124 86 124 106 Optics 316 | . . . 86 124 106 Terrain 287 | . 163 124 . . . Robot Analysis Total . | . . . . . . Derelict Logs Recovered 2 | . . . 2 . . Drone Launches . | . . . . . . Drone Recoveries . | . . . . . . Exploration | -11 -10 -9 -9 -8 -8 ------------- Run | Yrd Mat Mat Min Mat Gar Turns Passed 902 | 45 272 173 128 124 160 Spaces Moved 1021 | 45 205 136 276 161 198 Core 98 | 26 . 6 . . 66 Treads . | . . . . . . Legs 284 | 19 205 60 . . . Wheels . | . . . . . . Hover . | . . . . . . Flight 639 | . . 70 276 161 132 Fastest Speed 37 | 50 120 37 37 37 37 Average Speed 61 | 79 120 74 37 37 41 Slowest Speed 120 | 120 120 120 37 37 110 Overloaded Moves . | . . . . . . Propulsion Burnouts . | . . . . . . Robots Hopped . | . . . . . . Potential Cave-ins 2 | . . . . . 2 Cave-ins Triggered 1 | . . . . . 1 Exploration Rate (%) 29 | 3 40 17 67 20 29 Regions Visited 5 Branch Regions 1 Pre-discovered Areas . | . . . . . . Known Exits Taken 1 | . . . . 1 . Unknown Exits Taken 4 | 1 1 1 1 . . Scrap Searched 4 | . . . 4 . . Spaces Dug . | . . . . . . Terrain Destroyed 71 | . 25 . 2 19 25 Melee . | . . . . . . Projectile . | . . . . . . AOE 71 | . 25 . 2 19 25 Terrain Rammed . | . . . . . . Walls Destroyed . | . . . . . . Machines Disabled . | . . . . . . Actions | -11 -10 -9 -9 -8 -8 --------- Run | Yrd Mat Mat Min Mat Gar Total 1237 | 54 226 189 294 215 259 Wait 71 | . 5 19 1 27 19 Move 1015 | 44 204 135 275 161 196 Hop . | . . . . . . Pick Up 24 | 5 3 7 3 4 2 Fast Attach 1 | . . . 1 . . Attach 25 | 5 3 7 2 6 2 Detach 7 | . 2 2 . 3 . Swap 1 | . . . 1 . . Drop 5 | . . . 3 2 . Fire 50 | . 3 18 7 12 10 Melee 9 | . 6 1 1 . 1 Ram . | . . . . . . Kick . | . . . . . . Crush . | . . . . . . Escape Stasis 29 | . . . . . 29 Rewire . | . . . . . . Trap . | . . . . . . Miscellaneous . | . . . . . . Route ------- -11/Scrapyard -10/Materials -9/Materials -9/Mines (discovered 2 exits: *Mat x2) -8/Materials (discovered 2 exits: [*Sto] / Gar) -8/Garrison (discovered 1 exit: [*Mat]) History --------- Turn | Location | Event 5 | -11/Scrapyard | Discovered new exit (range 15) 46 | -11/Scrapyard | Entered Materials 208 | -10/Materials | Discovered new exit (range 9) 312 | -10/Materials | Build established: Mutant 318 | -10/Materials | Entered another Materials area 318 | -9/Materials | Evolved 2 slots: Utility x2 473 | -9/Materials | Lost 5 parts (2n1u2w) 484 | -9/Materials | Discovered new exit (range 8) 491 | -9/Materials | Entered Mines 529 | -9/Mines | Discovered new exit (range 13) 568 | -9/Mines | Learned Materials stockpile data 602 | -9/Mines | Discovered new exit (range 7) 608 | -9/Mines | Received a Rocket Launcher from a helpful Derelict 614 | -9/Mines | Learned Materials security intel 619 | -9/Mines | Entered Materials 619 | -8/Materials | Evolved 2 slots: Power x1, Weapon x1 635 | -8/Materials | Discovered new exit (range 18) 743 | -8/Materials | Identified exit to Garrison 743 | -8/Materials | Entered Garrison 761 | -8/Garrison | Triggered checkpoint 798 | -8/Garrison | Discovered new exit (range 12) 813 | -8/Garrison | Triggered checkpoint 818 | -8/Garrison | Garrison Relay disabled 849 | -8/Garrison | Crushed by falling debris 854 | -8/Garrison | Core integrity fell below 50% 871 | -8/Garrison | Attempted to access garrison exit controls, blocked by remote lockdown 880 | -8/Garrison | Lost 8 parts (2p3n1u2w) 894 | -8/Garrison | Core integrity fell below 20% 903 | -8/Garrison | Destroyed by Y-45 Defender with Heavy Assault Rifle Last Messages --------------- area. 00881_ Field strength at 94. 00881_ Field strength at 84. 00884_ Slug penetrates G-47 Trooper. 00887_ Critical hit (Burn: +26). 00890_ Penetrated by Slug. 00893_ Field strength at 40. 00894_ Field strength at 34. 00895_ Field strength at 28. 00896_ Field strength at 15. 00897_ Field strength at 9. 00898_ Stasis field depleted. 00899_ Slug penetrates Wall. 00900_ Triggered Stasis Trap. 00900_ A bubble of rippling energy engulfs the area. 00900_ Field strength at 94. 00901_ Critical hit (Burn: +27). 00901_ Adv. Targeting Computer destroyed. 00903_ Slug penetrates Wall. Map ----- +----------------------------------------------------+ | ?????????????????????????????????????????????????? | | ?????????????????????????????????????????????????? | | ?????????????????????????????????????????????????? | | ?????????????????????????????????????????????????? | | ?????????????????????????????????????????????????? | | ?????????????????????????????????? ??????????????? | | ?????????????????????????????????? ??????????????? | | ????????????????????????????????? ?????????? ??? | | ?????????????????????????????????# ?????????? #?? | | ?????????????????????????????????# ####""""## ##? | | ???????????????????????????????### ## | | ???????????????????????????????? | | ????????????????????????????????? | | ?????????????????????????????????# ## #? #? | | ?????????????????????????????????# ## ## #? | | ?????????????????????????????????" "? | | ?????????????????????????????????" "? | | ?????????????????????????????????" "? | | ?????????????????????????????????" "? | | ?????????????????????????????????# ## ## #? | | ???????????????????????########### ## ## ## | | ???????????????????????# | | ???????????????????????# | | ???????????????????????# ######## #? | | ???????????????????????# #??????## ## ## ##? | | ???????????????????????# @#???????# #? ## #?? | | ???????????????????????# #???????# #??##### #?? | | ???????????????????????# #???????# #??????# #?? | | ???????????????????????# #???????# #??????# #?? | | ???????????????????????# #???????# #??????# #?? | | ??????????????########## Y######### #??????# #?? | | ??????????????# h #??????# ### | | ??????????????# #??????# | | ??????????????# #######Y#############??????# | | ??????????????# #?????# #?? ???????????????###### | | ??????????????# #?????# #?# #???????????????????? | | ??????????????# #?????# #?# #???????????????????? | | ??????????????# #?????# ###+#???????????????????? | | ??????????????# #?????# #???????????????????? | | ??????????????# #?????##### #???????????????????? | | ??????????????# #?????????# #???????????????????? | | ??????????????# #?????????# #???????????????????? | | ????????????### #?????????# ###?????????????????? | | ????????????# #?????????# #?????????????????? | | ????????????# < #???????### #?????????????????? | | ????????????# #?????### # #?????????????????? | | ????????????######????## ! !### #??????????????? | | ?????????????????????## #=## #??????????????? | | ?????????????????????# =% #??????????????? | | ?????????????????????## ## #???????????? | +----------------------------------------------------+ Best States ------------- Heat Dissipation 31 Energy Generation 15 Energy Capacity 150 Matter Stores 283 Matter Capacity 300 Sight Range 18 Terrain Scan Range 14 Terrain Scan Density 10 Additional Mass Support 6 Evasion (%) 62 Targeting Accuracy 8 Item Schematics ----------------- None Robot Schematics ------------------ None Fabricated ------------ Nothing Repaired ---------- Nothing Studied --------- Flight Unit | -9/Materials | Hacked EM Shotgun | -9/Materials | Hacked Alien Tech Used ----------------- None Achievements -------------- Let's See Who's Tougher Resistances Are Futile Unlikely Earthworm Challenges ------------ None Game ------ Seed TrapAblativeDrivehammer Manual? 0 Play Time 00:22:13 Cumulative 10.7 hours Start 2026.08.09 @ 22:28:51 End 2026.08.09 @ 23:02:45 Sessions 1 Manual Loads 0 Difficulty Rogue Special Mode None Game No. 30 Rogue 23 Adventurer 7 Explorer 0 Win Type - Total 0 Types 0/0/0/0/0/0/0/0/0/0 Lore% 9 Gallery% 14 Achievement% 12 Wizard Run 0 Options --------- Layout 1 ASCII 0 Keyboard 0 Movement Mouse Keybinds 0 Fullscreen 1 Font 24/Smallcaps Map View 50x35 Zoom Use 0% Tactical HUD 1 Map Filters NONE Filters NONE Steam 1 RUN: 6ef68a17-0819-46ae-a7a8-e7795122c385